Cogmind - Beta 10.2 @@@ ROGUE MODE // 2021.05.21 @ 12:32:06 Player: Plexion Result: Self-destructed Performance ------------- Evolutions (7) 3500 Regions Visited (23) 4600 Robots Destroyed (311) 1555 Value Destroyed (13027) 13027 Prototype IDs (62) 1240 Alien Tech Used (2) 400 Bonus (4980) 4980 TOTAL SCORE: 29302 Bonus ------- High Alert Combat Kills 456 Follower Combat Kills 144 Aligned with FarCom 300 Met Data Miner 300 Met Zhirov 300 Found Hidden Lab 3000 Pursued by Intercept 500 Friendly Fire -20 Cogmind --------- Core Integrity 1170/1300 Matter 25/300 Energy 60/580 System Corruption 0% Temperature Cool (257) Movement Treading (165) Ox1 Location -3/Research Parts ------- > --- POWER (2) -------- Heavy Antimatter Reactor Heavy Antimatter Reactor > --- PROPULSION (6) --- Biometal Heavy Treads > --- UTILITY (10) ----- Large Storage Unit High-capacity Storage Unit High-capacity Storage Unit Spectral Analyzer Improved Target Analyzer Advanced Core Analyzer Heavy Regenerative Plating Advanced Hacking Suite Quantum Router > --- WEAPON (3) ------- Hypervelocity EM Gauss Rifle Guided Remote Datajack > --- INVENTORY (26) --- Micro Fission Core Heavy Antimatter Reactor Particle Reactor Heavy Treads Improved Focal Shield Advanced Shield Generator Quantum Router Transdimensional Reconstructor Core Expander Integrated Dissipator Core Reset Matrix Heavy Neutron Cannon Gauss Rifle Gauss Rifle KE Penetrator KE Penetrator KE Penetrator KE Penetrator KE Penetrator Mini Smartbomb Launcher Lance Peak State ------------ > --- POWER ------------ Heavy Antimatter Reactor Heavy Antimatter Reactor > --- PROPULSION ------- Heavy Treads Biometal Heavy Treads Biometal Heavy Treads > --- UTILITY ---------- Large Storage Unit High-capacity Storage Unit High-capacity Storage Unit Spectral Analyzer Improved Target Analyzer Advanced Core Analyzer Heavy Regenerative Plating Advanced Hacking Suite Quantum Router > --- WEAPON ----------- Hypervelocity EM Gauss Rifle Tachyon Dispersion Ray Guided Remote Datajack > --- INVENTORY -------- Micro Fission Core Heavy Antimatter Reactor Particle Reactor Heavy Treads Improved Focal Shield Advanced Shield Generator Quantum Router Transdimensional Reconstructor Core Expander Integrated Dissipator Core Reset Matrix Heavy Neutron Cannon Gauss Rifle Gauss Rifle KE Penetrator KE Penetrator KE Penetrator KE Penetrator KE Penetrator Mini Smartbomb Launcher Lance [Rating: 165] Favorites ----------- Power Micro Fission Core Engine Reinforced Deuterium Engine Power Core Micro Fission Core Reactor Heavy Antimatter Reactor Propulsion Medium Treads Treads Medium Treads Leg Enhanced Flexi-carbon Leg Wheel Compact Wheel Utility High-capacity Storage Unit Device Weapon Cycler Storage High-capacity Storage Unit Processor Advanced Signal Interpreter Hackware Quantum Router Protection Improved Light Armor Plating Weapon Improved Assault Rifle Energy Gun Small Laser Energy Cannon Heavy Neutron Cannon Ballistic Gun Improved Assault Rifle Ballistic Cannon Improved Light Cannon Launcher Advanced EMP Blaster Special Weapon Guided Remote Datajack Slashing Weapon Axe Piercing Weapon Lance Build | -11 -10 -10 -9 -9 -9 -8 -8 -8 -7 -6 -6 -6 -6 -5 -5 -5 -5 -5 -4 -4 -4 -4 -3 ------- Run | Scr Mat Min Mat Min Exi Min Mat Sto Fac Fac Low Low Dat Pro Fac Upp Upp Zhi Pro Fac Arm Lab Res Slots Evolved 14 | . . . 2 . . . 2 . 2 2 . . . . 2 . . . . 2 . . 2 Power 1 | . . . . . . . . . . 1 . . . . . . . . . . . . . Propulsion 4 | . . . . . . . 1 . 1 . . . . . 1 . . . . . . . 1 Utility 8 | . . . 2 . . . 1 . . 1 . . . . 1 . . . . 2 . . 1 Weapon 1 | . . . . . . . . . 1 . . . . . . . . . . . . . . Parts Attached 284 | 7 9 3 23 1 . . 18 26 19 4 14 2 27 7 28 3 6 13 10 17 23 13 11 Power 30 | 1 1 . 2 . . . 2 2 1 1 . 1 1 1 5 . 1 3 2 1 3 1 1 Engine 12 | 1 1 . 2 . . . . 1 1 . . . 1 1 3 . . 1 . . . . . Core 11 | . . . . . . . 2 1 . 1 . 1 . . 2 . 1 . 1 . 2 . . Reactor 7 | . . . . . . . . . . . . . . . . . . 2 1 1 1 1 1 Propulsion 60 | 2 2 1 4 1 . . 6 5 5 . 5 . 6 1 6 . 1 3 . 4 5 2 1 Treads 46 | 2 2 1 4 1 . . 3 3 5 . 5 . 1 1 4 . 1 1 . 4 5 2 1 Leg 12 | . . . . . . . 3 2 . . . . 5 . . . . 2 . . . . . Wheel 2 | . . . . . . . . . . . . . . . 2 . . . . . . . . Hover . | . . . . . . . . . . . . . . . . . . . . . . . . Flight . | . . . . . . . . . . . . . . . . . . . . . . . . Utility 64 | 1 5 . 3 . . . 2 5 4 1 2 . 9 1 11 . . 4 1 3 4 6 2 Device 13 | . . . 1 . . . . 1 . 1 . . 2 . 2 . . 1 1 1 1 2 . Storage 9 | 1 5 . 1 . . . . . . . . . . . 1 . . 1 . . . . . Processor 6 | . . . . . . . . . . . . . . . 2 . . . . 1 . 2 1 Hackware 4 | . . . . . . . . . . . . . 2 . 1 . . . . . . . 1 Protection 32 | . . . 1 . . . 2 4 4 . 2 . 5 1 5 . . 2 . 1 3 2 . Artifact . | . . . . . . . . . . . . . . . . . . . . . . . . Weapon 130 | 3 1 2 14 . . . 8 14 9 2 7 1 11 4 6 3 4 3 7 9 11 4 7 Energy Gun 10 | 2 1 2 1 . . . . . . . . . . . . . . . . . . 2 2 Energy Cannon 5 | . . . 1 . . . . . . . . . . . . . . . . 3 . 1 . Ballistic Gun 70 | 1 . . 12 . . . 4 8 6 1 4 . 6 3 3 3 2 3 4 3 6 1 . Ballistic Cannon 3 | . . . . . . . 1 . 1 . . . 1 . . . . . . . . . . Launcher 26 | . . . . . . . 3 3 2 1 3 1 3 . . . 2 . 2 . 3 . 3 Special Weapon 1 | . . . . . . . . . . . . . . . . . . . . . . . 1 Impact Weapon . | . . . . . . . . . . . . . . . . . . . . . . . . Slashing Weapon 6 | . . . . . . . . 3 . . . . 1 1 1 . . . . . . . . Piercing Weapon 9 | . . . . . . . . . . . . . . . 2 . . . 1 3 2 . 1 Special Melee Weapon . | . . . . . . . . . . . . . . . . . . . . . . . . Unidentified Prototypes 21 | . . . 2 . . . . 2 . . . . 3 . 1 . . 5 . . 2 4 2 Parts Lost 89 | . 2 2 5 1 . . 6 8 1 . 3 . 20 6 6 . 1 . 2 2 13 6 5 Power 12 | . 1 . 1 . . . 2 . . . 1 . 3 1 1 . . . . . 2 . . Propulsion 24 | . . . 1 1 . . . 2 . . . . 6 1 2 . 1 . . 2 5 1 2 Utility 25 | . . . 1 . . . 1 4 1 . 1 . 5 1 3 . . . 1 . 3 4 . Weapon 28 | . 1 2 2 . . . 3 2 . . 1 . 6 3 . . . . 1 . 3 1 3 Highest Loss Streak 20 | . 1 1 2 1 . . 3 4 1 . 2 . 20 3 2 . 1 . 2 1 4 5 3 Average Slot Usage (%) 93 | . 91 99 95 100 100 100 96 93 99 100 97 99 73 81 86 100 100 82 99 91 85 71 77 Engine 5 | . 13 14 10 11 11 11 4 7 7 6 6 6 3 . 4 5 5 3 . . . . . Core 2 | . . . . . . . 2 1 . 6 5 5 3 . 1 5 5 5 5 5 6 . . Reactor 1 | . . . . . . . . . . . . . . . . . . 1 4 5 3 10 9 Treads 20 | . 28 28 21 22 22 22 21 3 30 26 25 26 14 . 11 29 29 28 29 23 17 10 13 Leg 3 | . . . . . . . 4 22 . . . . 7 24 7 . . . . . . . . Device 3 | . . . 2 11 11 11 5 1 . 6 6 6 2 . 1 . . . 1 5 4 5 3 Storage 22 | . 20 28 33 33 33 33 27 27 23 20 20 20 20 20 17 17 17 17 17 15 15 15 14 Processor 1 | . . . . . . . . . . . . . . . . 5 5 5 5 7 9 10 12 Hackware 3 | . . . . . . . . . . . . . 2 6 9 11 11 11 11 7 5 5 4 Protection 7 | . . . 5 . . . 11 10 14 13 13 13 10 13 8 5 5 4 3 5 4 3 4 Energy Gun 1 | . 14 25 1 . . . . . . . . . . . . . . . . . . . . Ballistic Gun 14 | . 14 2 19 22 22 22 11 14 22 20 18 14 2 11 11 17 16 . 13 12 9 3 . Naked Turns . | . . . . . . . . . . . . . . . . . . . . . . . . Heaviest Build 162 | 12 71 73 92 90 90 90 107 107 115 121 124 125 125 108 125 120 124 125 129 143 143 161 162 Greatest Support 236 | 40 40 40 44 42 40 40 62 69 112 112 112 102 104 84 135 135 142 142 142 154 173 173 236 Greatest Overweight (x) 6 | . 1 3 4 2 2 2 5 5 1 1 4 1 5 3 6 . . . . 1 1 1 . Average Overweight (x) . | . . 1 1 2 2 2 1 1 . 1 1 1 1 1 . . . . . . . . . Largest Inventory Capacity 26 | 6 20 20 26 26 26 26 26 26 26 26 26 26 26 26 26 26 26 26 26 26 26 26 26 Average Capacity 25 | 4 10 20 26 26 26 26 26 26 26 26 26 26 26 26 26 26 26 26 26 26 26 26 26 Most Carried 26 | 2 6 8 25 22 23 23 26 26 26 25 26 26 26 16 26 26 26 26 26 26 26 23 24 Average Carried 21 | . 2 6 19 21 22 23 23 25 24 23 25 25 20 13 19 26 25 25 25 25 22 16 22 Final Capacity 26 | 6 20 20 26 26 26 26 26 26 26 26 26 26 26 26 26 26 26 26 26 26 26 26 26 Final Carried 26 | 2 6 6 21 22 23 23 25 26 25 25 26 26 13 14 26 26 26 26 25 25 18 23 22 Class Distribution -------------------- 41% | Hauler-Mutant 18% | Hauler-Tank 11% | Hacker-Mutant 9% | Scavenger-Mutant 9% | Hacker-Tank 3% | Mutant Dominant Class ---------------- Mutant | -10/Materials Hauler-Mutant | -10/Mines Hauler-Mutant | -9/Materials Hauler-Mutant | -9/Mines Hauler-Mutant | -9/Exiles Hauler-Mutant | -8/Mines Hauler-Mutant | -8/Materials Hauler-Mutant | -8/Storage Hauler-Tank | -7/Factory Hauler-Tank | -6/Factory Hauler-Tank | -6/Lower Caves Hauler-Mutant | -6/Lower Caves Hauler-Mutant | -6/Data Miner Scavenger-Mutant | -5/Proximity Caves Scavenger-Mutant | -5/Factory Hacker-Tank | -5/Upper Caves Hacker-Tank | -5/Upper Caves Hacker-Mutant | -5/Zhirov Hacker-Mutant | -4/Proximity Caves Scavenger-Tank | -4/Factory Hauler-Mutant | -4/Armory Hauler-Mutant | -4/Lab Hauler-Mutant | -3/Research Resources | -11 -10 -10 -9 -9 -9 -8 -8 -8 -7 -6 -6 -6 -6 -5 -5 -5 -5 -5 -4 -4 -4 -4 -3 ----------- Run | Scr Mat Min Mat Min Exi Min Mat Sto Fac Fac Low Low Dat Pro Fac Upp Upp Zhi Pro Fac Arm Lab Res Matter Collected 7927 | 216 145 78 429 30 . . 360 980 522 161 572 105 233 555 391 271 499 . 506 384 934 55 501 Remotely . | . . . . . . . . . . . . . . . . . . . . . . . . Salvage Created 14488 | . 524 300 1096 63 . . 837 1825 966 319 1295 96 348 528 797 74 778 . 935 694 1789 55 1169 Parts 711 | . 28 21 71 9 . . 43 110 47 15 48 7 11 29 44 5 30 . 27 43 80 1 42 Haulers Intercepted 15 | . 1 . 4 . . . 3 4 2 . . . . . 1 . . . . . . . . Recyclers Shooed 6 | . . . . . . . . 1 1 1 . . . . 1 . . . . 1 . . 1 Parts Field Recycled . | . . . . . . . . . . . . . . . . . . . . . . . . Retrieved Matter . | . . . . . . . . . . . . . . . . . . . . . . . . Parts Self-Destructed 66 | . . . . . . . . . . . 18 2 . 23 . 4 14 . 5 . . . . Prevented 47 | . . . . . . . . . . . 24 1 . . . . 13 . 9 . . . . Kills | -11 -10 -10 -9 -9 -9 -8 -8 -8 -7 -6 -6 -6 -6 -5 -5 -5 -5 -5 -4 -4 -4 -4 -3 ------- Run | Scr Mat Min Mat Min Exi Min Mat Sto Fac Fac Low Low Dat Pro Fac Upp Upp Zhi Pro Fac Arm Lab Res Combat Hostiles Destroyed 252 | . 10 7 24 3 . . 23 26 14 5 21 4 4 8 7 1 17 . 8 15 27 1 27 Melee 9 | . . . . . . . . 1 . . . . . . 5 . . . . . 3 . . Guns 119 | . 10 7 24 3 . . 4 17 9 2 7 . 1 8 2 1 7 . 2 7 8 . . Cannons 10 | . . . . . . . 2 . . . . . 2 . . . . . . 3 . 1 2 AOE 87 | . . . . . . . 17 7 4 3 7 4 1 . . . 8 . 5 5 7 . 19 Classes Destroyed 18 | . 3 3 1 . . . 3 2 1 . 1 . . 1 1 . . . . . 2 . . Worker 18 | . . 1 . 1 . . 1 4 2 1 . . . . 5 . . . . 1 . . 2 Builder 9 | . . . . . . . . 7 . 1 . . . . . . . . . . . . 1 Tunneler 1 | . . . . . . . . . . . . . . . 1 . . . . . . . . Hauler 15 | . 1 . 4 . . . 3 4 2 . . . . . 1 . . . . . . . . Recycler 6 | . . 1 1 . . . 2 1 . . . . . . 1 . . . . . . . . Operator 4 | . . . . . . . . 1 1 1 . . . . . . . . . 1 . . . Watcher 5 | . 1 . . . . . . . 1 . . . . . 1 . . . . . 2 . . Swarmer 52 | . . 3 8 3 . . 4 4 . . . 4 . . . . 9 . 4 5 . . 8 Grunt 98 | . 10 4 14 . . . 12 13 7 3 12 . . . . . 4 . . . 5 . 14 Brawler 6 | . . . . . . . 1 . 2 . 2 . . . . . . . . . . . 1 Duelist 5 | . . . . . . . 1 . . . 1 . . 2 . . . . . . . . 1 Sentry 25 | . . . 2 . . . 4 8 . . 3 . . 1 1 1 1 . . 3 1 . . Demolisher 5 | . . . . . . . . . . . . . . . . . . . . . 5 . . Hunter 21 | . . . . . . . 1 1 . . . . . 3 1 . 1 . 2 2 8 . 2 Programmer 30 | . . . . . . . . . 5 2 . . . 2 5 . 2 . 2 5 7 . . Behemoth 1 | . . . . . . . . . . . . . . . . . . . . . 1 . . Enhanced Grunt 4 | . . . . . . . . . . . . . 4 . . . . . . . . . . Tracker 1 | . . . . . . . . . . . . . . . . . . . . . . . 1 Samaritan 1 | . . . . . . . . . . . . . . 1 . . . . . . . . . Thief 3 | . . . . . . . . . . . 3 . . . . . . . . . . . . Best Kill Streak 14 | . 2 3 3 3 . . 10 10 5 3 8 4 4 3 3 1 7 . 4 7 9 1 14 Combat Bots Only 8 | . 2 3 3 3 . . 7 6 4 3 8 4 4 3 2 1 7 . 4 5 8 1 7 Max Kills in Single Turn 5 | . 1 1 1 1 . . 3 4 2 2 3 3 1 1 1 1 2 . 3 5 2 1 4 Gunslinging 1 | . . . . . . . 1 . . . . . . . . . . . . . . . . Exploded 4 | . . . . . . . 3 2 1 2 3 3 1 . . . 2 . 3 4 2 . 3 Melee 1 | . . . . . . . . 1 . . . . . . 1 . . . . . 1 . . Uniques/NPCs Destroyed 2 | . . . . . . . . . . . . . 1 . . . . . . . . 1 . Data Miner (-6/Data Miner) A5 (-4/Lab) Combat | -11 -10 -10 -9 -9 -9 -8 -8 -8 -7 -6 -6 -6 -6 -5 -5 -5 -5 -5 -4 -4 -4 -4 -3 -------- Run | Scr Mat Min Mat Min Exi Min Mat Sto Fac Fac Low Low Dat Pro Fac Upp Upp Zhi Pro Fac Arm Lab Res Damage Taken 21657 | . 562 242 1042 46 . . 951 1771 877 272 1159 64 3234 1578 683 48 788 . 574 1366 3886 724 1790 Core 2271 | . 114 32 125 6 . . 117 310 86 23 165 . 564 73 63 . 75 . 23 117 170 78 130 Absorbed by Shields 349 | . . . . . . . . . . . . . . . . . . . . . 91 258 . Reduced by Siege Mode 118 | . . . . . . . . . . . . . . . . . . . . . 53 65 . Core Remaining (%) 57 | 100 . 41 . . . 67 . 22 87 . . . . 2 . . . . 83 . . 61 . Volleys Fired 833 | . 48 25 122 5 . . 48 105 53 14 48 3 23 60 19 2 37 . 20 56 75 25 45 Largest 3 | . 2 2 2 2 . . 2 2 3 3 3 1 3 3 3 3 3 . 3 3 3 3 1 Hottest 173 | . 60 105 105 43 . . 43 51 69 69 69 36 89 74 89 89 99 . 99 170 173 143 110 Shots Fired 1561 | . 94 41 244 10 . . 62 184 132 40 101 5 34 96 57 6 82 . 44 130 114 40 45 Gun 1321 | . 94 41 244 10 . . 28 168 119 39 81 1 21 95 57 6 67 . 36 107 67 27 13 Cannon 62 | . . . . . . . 10 . 5 . . . 10 . . . . . . 19 1 13 4 Launcher 178 | . . . . . . . 24 16 8 1 20 4 3 1 . . 15 . 8 4 46 . 28 Special . | . . . . . . . . . . . . . . . . . . . . . . . . Kinetic 1243 | . 48 10 231 10 . . 38 168 124 39 81 1 31 95 57 6 67 . 36 107 67 27 . Thermal 111 | . 30 31 13 . . . . . . . . . . . . . . . . 19 1 13 4 Explosive 39 | . . . . . . . 24 . . . . . . . . . . . . . . . 15 Electromagnetic 168 | . 16 . . . . . . 16 8 1 20 4 3 1 . . 15 . 8 4 46 . 26 Robot Hit Streak 27 | . 14 17 27 4 . . 12 18 23 21 16 1 6 9 15 4 8 . 18 13 23 7 11 Robot Miss Streak 4 | . 3 4 4 2 . . 4 3 3 1 1 1 1 3 3 . 3 . 1 3 3 3 2 Penetration Max 1 | . . . . . . . . 1 . . . . 1 1 1 . . . . 1 1 . . Secondary Targets 8 | . . 1 . . . . 1 1 1 . . . . . . . 1 . . . 3 . . Max Gunslinging Chain 1 | . . 1 . . . . 1 1 1 . . . . . . . 1 . . . 1 . . Shots Hit Robots 1119 | . 62 29 181 5 . . 43 134 102 23 77 1 27 64 63 4 44 . 56 84 73 25 22 Core Hits 627 | . 28 16 63 5 . . 58 67 40 15 45 4 22 25 23 1 22 . 24 29 57 16 67 Critical Hits 36 | . . . 4 . . . 1 1 2 . . . 2 . 4 1 3 . 6 4 3 3 2 Critical Kills 11 | . . . 2 . . . . . . . . . . . 1 1 1 . 2 4 . . . Critical Parts Destroyed 22 | . . . 2 . . . 1 1 2 . . . . . 3 . 2 . 4 . 3 3 1 Melee Attacks 107 | . . . . . . . . 8 . . . . 3 2 43 . . . 22 6 18 . 5 Impact . | . . . . . . . . . . . . . . . . . . . . . . . . Slashing 15 | . . . . . . . . 8 . . . . 3 2 2 . . . . . . . . Piercing 92 | . . . . . . . . . . . . . . . 41 . . . 22 6 18 . 5 Sneak Attacks 10 | . . . . . . . . 1 . . . . 1 2 6 . . . . . . . . Combat Hostiles 1 | . . . . . . . . . . . . . . . 1 . . . . . . . . Follow-up Attacks . | . . . . . . . . . . . . . . . . . . . . . . . . Damage Inflicted 35543 | . 650 327 1523 56 . . 2084 3511 2316 826 2338 219 1055 1213 2232 86 1624 . 3348 2606 4096 464 4969 Guns 15077 | . 647 327 1491 56 . . 265 2068 1569 380 917 . 349 1016 1105 86 833 . 730 1471 1402 322 43 Cannons 1156 | . . . . . . . 163 . . . . . 250 . . . . . . 445 38 142 118 Explosions 15158 | . . . . . . . 1656 1304 747 412 1421 219 353 23 . . 791 . 338 690 2396 . 4808 Melee 4083 | . . . . . . . . 139 . . . . 103 174 1127 . . . 2280 . 260 . . Ramming 69 | . 3 . 32 . . . . . . 34 . . . . . . . . . . . . . Kinetic 14687 | . 230 78 1397 56 . . 428 2068 1569 380 917 . 599 1016 1105 86 833 . 730 1471 1402 322 . Thermal 3199 | . 262 249 94 . . . . 175 88 40 62 102 160 . . . . . . 1073 352 142 400 Explosive 5460 | . . . . . . . 1656 . . 325 . . . . . . . . . . . . 3479 Electromagnetic 8045 | . 155 . . . . . . 1129 659 47 1359 117 193 23 . . 791 . 338 62 2082 . 1090 Impact . | . . . . . . . . . . . . . . . . . . . . . . . . Slashing 416 | . . . . . . . . 139 . . . . 103 174 . . . . . . . . . Piercing 3667 | . . . . . . . . . . . . . . . 1127 . . . 2280 . 260 . . Highest Corruption 23 | . 2 2 . . . . . 1 7 1 6 6 6 9 4 4 7 7 12 3 16 23 . Average Corruption 4 | . 2 2 . . . . . 1 3 1 3 6 6 6 2 4 5 7 9 1 7 21 . Corruption Purged . | . . . . . . . . . . . . . . . . . . . . . . . . Effects 329 | . 4 13 . . . . . 1 28 3 28 20 14 30 35 4 32 8 37 6 39 27 . Message Errors 77 | . . 5 . . . . . . 6 1 4 5 5 4 9 2 10 3 7 2 7 7 . Matter Fused 65 | . . . . . . . . . 4 . 6 5 1 10 11 . 8 1 9 . 6 4 . Heat Flow Errors 33 | . . 3 . . . . . . 5 . 3 2 1 1 6 1 3 1 4 . 3 . . Energy Discharges 35 | . . 2 . . . . . . 3 2 5 1 3 1 4 1 4 2 4 1 1 1 . Parts Rejected 2 | . . . . . . . . . . . . . 1 . . . . . 1 . . . . Data Loss (minor) 27 | . 3 2 . . . . . . 3 . 3 3 1 2 2 . 2 1 2 1 1 1 . Data Loss (major) 7 | . . . . . . . . . 1 . . . . 1 . . . . 2 . 1 2 . Misfires 7 | . . . . . . . . . 1 . . 2 . 3 . . 1 . . . . . . Alerts 2 | . . . . . . . . . . . . . . . . . . . . . 2 . . Misdirections 8 | . . . . . . . . . . . . . . . . . . . 5 . 1 2 . Targeting Errors 56 | . 1 1 . . . . . 1 3 . 4 2 2 5 3 . 4 . 3 2 16 9 . Weapon Failures 10 | . . . . . . . . . 2 . 3 . . 3 . . . . . . 1 1 . Overload Shots . | . . . . . . . . . . . . . . . . . . . . . . . . Overflow Damage 1180 | . . . . . . . 6 48 35 2 22 . . 49 71 . 13 . 572 33 23 . 306 Projectiles . | . . . . . . . . . . . . . . . . . . . . . . . . Explosions 486 | . . . . . . . 6 48 35 . 22 . . . . . 13 . . 33 23 . 306 Melee 694 | . . . . . . . . . . 2 . . . 49 71 . . . 572 . . . . Knockbacks 4 | . . . . . . . . . . . . . 4 . . . . . . . . . . Impact . | . . . . . . . . . . . . . . . . . . . . . . . . Kinetic 4 | . . . . . . . . . . . . . 4 . . . . . . . . . . Secondary . | . . . . . . . . . . . . . . . . . . . . . . . . Self-Inflicted Damage 765 | . . . . . . . . 75 . 104 297 23 59 . . . 18 . 7 . 106 . 76 Shots 43 | . . . . . . . . 5 . 2 14 1 3 . . . 3 . 1 . 11 . 3 Rammed 5 | . 1 . 2 . . . . . . 2 . . . . . . . . . . . . . Targets Rammed 5 | . 1 . 2 . . . . . . 2 . . . . . . . . . . . . . Kicked . | . . . . . . . . . . . . . . . . . . . . . . . . Crushed . | . . . . . . . . . . . . . . . . . . . . . . . . Highest Temperature 464 | . 103 464 90 . . . 21 15 238 142 207 200 343 109 215 279 210 126 250 340 296 432 422 Average Temperature 78 | . 37 119 18 . . . 5 6 48 58 66 72 170 57 48 102 66 71 77 104 132 114 166 Received Heat Transfer 3360 | . 312 93 420 . . . 360 738 108 9 255 . 408 45 9 9 27 . . 63 129 . 375 Effects 17 | . . 3 . . . . . . . . 1 . 3 . . . . . . . 4 2 4 Shutdowns 3 | . . 1 . . . . . . . . . . 1 . . . . . . . . 1 . Energy Bleed 1 | . . . . . . . . . . . 1 . . . . . . . . . . . . Interference 9 | . . . . . . . . . . . . . 2 . . . . . . . 4 . 3 Short Circuit 2 | . . 1 . . . . . . . . . . . . . . . . . . . . 1 Damage (minor) 2 | . . 1 . . . . . . . . . . . . . . . . . . . 1 . Siege Activations 3 | . . . . . . . . . . . . . . . . . . . . . 2 1 . Total Turns 68 | . . . . . . . . . . . . . . . . . . . . . 34 34 . Longest Duration 34 | . . . . . . . . . . . . . . . . . . . . . 26 34 . Robots Corrupted 28 | . . . . . . . . 1 1 . 7 . . . . . 2 . 1 . 10 . 6 Combat Hostiles 27 | . . . . . . . . 1 1 . 7 . . . . . 2 . 1 . 9 . 6 Parts Fried 55 | . 1 . . . . . . 3 3 . 14 . . . . . 4 . 5 . 13 . 12 Impact Corruptions 1 | . . . . . . . . . . 1 . . . . . . . . . . . . . Robots Melted . | . . . . . . . . . . . . . . . . . . . . . . . . Combat Hostiles . | . . . . . . . . . . . . . . . . . . . . . . . . Parts Melted 6 | . . 2 . . . . . . . . . . . . . . . . . 4 . . . Heat Transferred 3518 | . 575 558 235 . . . . 300 150 . 50 50 150 . . . . . . 725 275 125 325 Parts Sabotaged . | . . . . . . . . . . . . . . . . . . . . . . . . Parts Stolen 3 | . . . . . . . . . . . 3 . . . . . . . . . . . . Parts Stripped . | . . . . . . . . . . . . . . . . . . . . . . . . Power Chain Reactions 21 | . . . . . . . . 4 2 1 3 2 1 . . . . . . 1 5 . 2 Missiles Intercepted . | . . . . . . . . . . . . . . . . . . . . . . . . Alert | -11 -10 -10 -9 -9 -9 -8 -8 -8 -7 -6 -6 -6 -6 -5 -5 -5 -5 -5 -4 -4 -4 -4 -3 ------- Run | Scr Mat Min Mat Min Exi Min Mat Sto Fac Fac Low Low Dat Pro Fac Upp Upp Zhi Pro Fac Arm Lab Res Peak Influence 665 | . 222 194 497 178 . . 460 587 416 304 . . . . 171 . . . . 364 665 . 662 Initial 263 | . . 24 . 173 . . . 146 263 114 . . . . 69 . . . . 18 149 . . Average 180 | . 108 56 244 130 . . 214 320 238 117 . . . . 72 . . . . 221 315 . 236 Maximum Alert Level 2 | . 1 . 2 . . . 2 2 2 1 . . . . . . . . . 1 2 . 2 Low Security (%) 63 | 100 76 100 37 100 . 100 62 27 30 88 . . . . 100 . . . . 49 37 . 43 Level 1 26 | . 23 . 44 . . . 11 37 65 11 . . . . . . . . . 50 29 . 38 Level 2 10 | . . . 17 . . . 25 34 3 . . . . . . . . . . . 32 . 18 Level 3 . | . . . . . . . . . . . . . . . . . . . . . . . . Level 4 . | . . . . . . . . . . . . . . . . . . . . . . . . Level 5 . | . . . . . . . . . . . . . . . . . . . . . . . . High Security . | . . . . . . . . . . . . . . . . . . . . . . . . Max Security . | . . . . . . . . . . . . . . . . . . . . . . . . Squads Dispatched 40 | . 3 . 5 . . . 1 4 7 2 . . . . 5 . . . . 3 4 . 6 Investigation 10 | . 3 . 2 . . . . 1 . . . . . . 1 . . . . . 1 . 2 Extermination 13 | . . . . . . . . . 3 2 . . . . 3 . . . . 3 2 . . Reinforcement 12 | . . . 3 . . . 1 2 4 . . . . . 1 . . . . . . . 1 Assault 1 | . . . . . . . . . . . . . . . . . . . . . 1 . . Garrison 2 | . . . . . . . . 1 . . . . . . . . . . . . . . 1 Intercept 2 | . . . . . . . . . . . . . . . . . . . . . . . 2 Construction Impeded 2 | . . . . . . . . 1 . . . . . . . . . . . . . . 1 Haulers Reinforced 1 | . . . . . . . . . 1 . . . . . . . . . . . . . . Stealth | -11 -10 -10 -9 -9 -9 -8 -8 -8 -7 -6 -6 -6 -6 -5 -5 -5 -5 -5 -4 -4 -4 -4 -3 --------- Run | Scr Mat Min Mat Min Exi Min Mat Sto Fac Fac Low Low Dat Pro Fac Upp Upp Zhi Pro Fac Arm Lab Res Distress Signals 13 | . 2 . 4 . . . 1 2 . . . . . . . . . . . 1 2 . 1 Communications Jammed . | . . . . . . . . . . . . . . . . . . . . . . . . Distress Signals . | . . . . . . . . . . . . . . . . . . . . . . . . Times Spotted 376 | . 21 8 58 3 . . 26 40 27 11 21 2 4 8 23 1 21 . 8 23 37 1 33 Peak Tracking Total 8 | . 4 3 5 3 . . 6 5 4 4 7 4 4 3 3 1 6 . 4 7 5 1 8 Tactical Retreats 22 | . 2 1 4 . . . . 4 2 . 1 . . . 2 . 3 . . 1 1 . 1 Traps | -11 -10 -10 -9 -9 -9 -8 -8 -8 -7 -6 -6 -6 -6 -5 -5 -5 -5 -5 -4 -4 -4 -4 -3 ------- Run | Scr Mat Min Mat Min Exi Min Mat Sto Fac Fac Low Low Dat Pro Fac Upp Upp Zhi Pro Fac Arm Lab Res Traps Triggered 11 | . 3 . . . . . . . 4 . . . . . . . . . . . 1 . 3 Indirectly 2 | . . . . . . . . . . . . . . . . . . . . . . . 2 Trap Hack Attempts . | . . . . . . . . . . . . . . . . . . . . . . . . Triggered . | . . . . . . . . . . . . . . . . . . . . . . . . Disarmed . | . . . . . . . . . . . . . . . . . . . . . . . . Reprogrammed . | . . . . . . . . . . . . . . . . . . . . . . . . Reused . | . . . . . . . . . . . . . . . . . . . . . . . . Traps Extracted . | . . . . . . . . . . . . . . . . . . . . . . . . Installed . | . . . . . . . . . . . . . . . . . . . . . . . . Triggered 5 | . . . . . . . . . . . 1 1 . . . 1 2 . . . . . . Machines | -11 -10 -10 -9 -9 -9 -8 -8 -8 -7 -6 -6 -6 -6 -5 -5 -5 -5 -5 -4 -4 -4 -4 -3 ---------- Run | Scr Mat Min Mat Min Exi Min Mat Sto Fac Fac Low Low Dat Pro Fac Upp Upp Zhi Pro Fac Arm Lab Res Machines Disabled 34 | . . . . . . . 2 7 . 3 1 . 1 . 2 . . . . 10 4 2 2 Max in Single Turn 7 | . . . . . . . 1 1 . 2 1 . 1 . 1 . . . . 7 1 1 1 Garrison Access 4 | . . . . . . . 1 . 1 . . . . . 1 . . . . 1 . . . Energy Cycler 1 | . . . . . . . . . . . . . . . . . . . . . 1 . . Machines Sabotaged . | . . . . . . . . . . . . . . . . . . . . . . . . Garrisons Compromised . | . . . . . . . . . . . . . . . . . . . . . . . . Overloaded Fab Kills . | . . . . . . . . . . . . . . . . . . . . . . . . Fab Network Shutdowns . | . . . . . . . . . . . . . . . . . . . . . . . . Hacking | -11 -10 -10 -9 -9 -9 -8 -8 -8 -7 -6 -6 -6 -6 -5 -5 -5 -5 -5 -4 -4 -4 -4 -3 --------- Run | Scr Mat Min Mat Min Exi Min Mat Sto Fac Fac Low Low Dat Pro Fac Upp Upp Zhi Pro Fac Arm Lab Res Machines Accessed 64 | . 3 . 5 . 2 . 3 7 6 8 . . 4 . 11 . . 9 1 1 1 2 1 Terminals 32 | . 2 . 3 . . . 1 7 4 7 . . . . 7 . . . 1 . . . . Fabricators 5 | . . . . . . . . . 1 1 . . . . 2 . . . . . 1 . . Repair Stations . | . . . . . . . . . . . . . . . . . . . . . . . . Recycling Units 3 | . 1 . 2 . . . . . . . . . . . . . . . . . . . . Scanalyzers 1 | . . . . . . . 1 . . . . . . . . . . . . . . . . Garrison Access 6 | . . . . . . . 1 . 1 . . . . . 2 . . . . 1 . . 1 Total Hacks 206 | . 8 . 6 . 2 . 5 17 15 17 . . 27 . 40 . . 48 2 3 4 8 4 Successful 138 | . 3 . 6 . 2 . 3 8 9 8 . . 27 . 12 . . 48 2 1 1 8 . Failed 67 | . 5 . . . . . 2 9 6 9 . . . . 27 . . . . 2 3 . 4 Catastrophic 13 | . 1 . . . . . . 1 1 . . . . . 9 . . . . . 1 . . Database Lockouts 1 | . . . . . . . . . . . . . . . 1 . . . . . . . . Manual 86 | . 8 . 6 . 1 . 2 9 11 13 . . . . 34 . . . . . . 1 1 Terminals 88 | . 7 . 4 . . . 2 17 10 15 . . . . 31 . . . 2 . . . . Fabricators 16 | . . . . . . . . . 4 2 . . . . 6 . . . . . 4 . . Repair Stations . | . . . . . . . . . . . . . . . . . . . . . . . . Recycling Units 3 | . 1 . 2 . . . . . . . . . . . . . . . . . . . . Scanalyzers 2 | . . . . . . . 2 . . . . . . . . . . . . . . . . Garrison Access 12 | . . . . . . . 1 . 1 . . . . . 3 . . . . 3 . . 4 Terminal Hacks 103 | . 1 . 1 . 2 . . 5 2 4 . . 27 . 3 . . 48 2 . . 8 . Record 58 | . . . . . 1 . . . . . . . 11 . . . . 36 2 . . 8 . Part Schematic 13 | . . . . . . . . . . 1 . . 5 . 3 . . 4 . . . . . Robot Schematic 8 | . . . . . . . . . . . . . 8 . . . . . . . . . . Robot Analysis 5 | . . . . . . . . . . 1 . . . . . . . 4 . . . . . Prototype ID Bank 7 | . . . . . . . . . . . . . 3 . . . . 4 . . . . . Open Door 4 | . . . . . . . . 4 . . . . . . . . . . . . . . . Branch Access Points 1 | . . . . . . . . . . 1 . . . . . . . . . . . . . Terminal Index 1 | . . . . . . . . . . 1 . . . . . . . . . . . . . Unreport Threat 1 | . . . . . . . . 1 . . . . . . . . . . . . . . . Locate Traps 1 | . . . 1 . . . . . . . . . . . . . . . . . . . . Zone Layout 3 | . 1 . . . . . . . 2 . . . . . . . . . . . . . . EX-Prototype ID Bank 1 | . . . . . 1 . . . . . . . . . . . . . . . . . . Fabricator Hacks 6 | . . . . . . . . . 2 1 . . . . 2 . . . . . 1 . . Load Schematic 4 | . . . . . . . . . 1 1 . . . . 1 . . . . . 1 . . Build 2 | . . . . . . . . . 1 . . . . . 1 . . . . . . . . Repair Station Hacks . | . . . . . . . . . . . . . . . . . . . . . . . . Recycling Unit Hacks . | . . . . . . . . . . . . . . . . . . . . . . . . Scanalyzer 2 | . . . . . . . 2 . . . . . . . . . . . . . . . . Insert Component 1 | . . . . . . . 1 . . . . . . . . . . . . . . . . Analyze 1 | . . . . . . . 1 . . . . . . . . . . . . . . . . Garrison Access Hacks 4 | . . . . . . . 1 . 1 . . . . . 1 . . . . 1 . . . Seal Access 4 | . . . . . . . 1 . 1 . . . . . 1 . . . . 1 . . . Unauthorized Hacks 23 | . 2 . 5 . . . . 3 4 3 . . . . 6 . . . . . . . . Terminals 20 | . 1 . 3 . . . . 3 4 3 . . . . 6 . . . . . . . . Track 10 | . 1 . 3 . . . . . 3 . . . . . 3 . . . . . . . . Assimilate 2 | . . . . . . . . . . 1 . . . . 1 . . . . . . . . Botnet 7 | . . . . . . . . 2 1 2 . . . . 2 . . . . . . . . Disrupt 1 | . . . . . . . . 1 . . . . . . . . . . . . . . . Fabricators . | . . . . . . . . . . . . . . . . . . . . . . . . Repair Stations . | . . . . . . . . . . . . . . . . . . . . . . . . Recycling Units 3 | . 1 . 2 . . . . . . . . . . . . . . . . . . . . Tunnel 3 | . 1 . 2 . . . . . . . . . . . . . . . . . . . . Scanalyzers . | . . . . . . . . . . . . . . . . . . . . . . . . Garrison Access . | . . . . . . . . . . . . . . . . . . . . . . . . Data Cores Recovered 1 | . . . . . . . . . . 1 . . . . . . . . . . . . . Used . | . . . . . . . . . . . . . . . . . . . . . . . . Hacking Detections 34 | . 2 . 2 . . . 1 4 5 8 . . . . 10 . . . . . 1 . 1 Full Trace Events 3 | . . . . . . . . 1 . . . . . . 1 . . . . . . . 1 Feedback Events . | . . . . . . . . . . . . . . . . . . . . . . . . Feedback Blocked . | . . . . . . . . . . . . . . . . . . . . . . . . Robot Schematics Acquired 8 | . . . . . . . . . . . . . 8 . . . . . . . . . . Robots Built . | . . . . . . . . . . . . . . . . . . . . . . . . Matter . | . . . . . . . . . . . . . . . . . . . . . . . . Time . | . . . . . . . . . . . . . . . . . . . . . . . . Total Robot Build Rating . | . . . . . . . . . . . . . . . . . . . . . . . . Part Schematics Acquired 14 | . . . . . . . 1 . . 1 . . 5 . 3 . . 4 . . . . . Parts Built 3 | . . . . . . . . . 2 . . . . . 1 . . . . . . . . Matter 424 | . . . . . . . . . 168 . . . . . 256 . . . . . . . . Time 126 | . . . . . . . . . 84 . . . . . 42 . . . . . . . . Total Part Build Rating 16 | . . . . . . . . . 8 . . . . . 8 . . . . . . . . Parts Repaired . | . . . . . . . . . . . . . . . . . . . . . . . . Time . | . . . . . . . . . . . . . . . . . . . . . . . . Parts Recycled . | . . . . . . . . . . . . . . . . . . . . . . . . Recycled Matter . | . . . . . . . . . . . . . . . . . . . . . . . . Retrieved Matter . | . . . . . . . . . . . . . . . . . . . . . . . . Retrieved Components . | . . . . . . . . . . . . . . . . . . . . . . . . Parts Scanalyzed 1 | . . . . . . . 1 . . . . . . . . . . . . . . . . Part Schematics Acquired 1 | . . . . . . . 1 . . . . . . . . . . . . . . . . Parts Damaged 1 | . . . . . . . 1 . . . . . . . . . . . . . . . . Bothacking | -11 -10 -10 -9 -9 -9 -8 -8 -8 -7 -6 -6 -6 -6 -5 -5 -5 -5 -5 -4 -4 -4 -4 -3 ------------ Run | Scr Mat Min Mat Min Exi Min Mat Sto Fac Fac Low Low Dat Pro Fac Upp Upp Zhi Pro Fac Arm Lab Res Used RIF Installer . | . . . . . . . . . . . . . . . . . . . . . . . . Robots Hacked . | . . . . . . . . . . . . . . . . . . . . . . . . Non-combat . | . . . . . . . . . . . . . . . . . . . . . . . . Combat . | . . . . . . . . . . . . . . . . . . . . . . . . Robot Hacks Applied . | . . . . . . . . . . . . . . . . . . . . . . . . Relay Couplers Released . | . . . . . . . . . . . . . . . . . . . . . . . . Robots Rewired 1 | . . . . . . . . . . . 1 . . . . . . . . . . . . Allies Hacked . | . . . . . . . . . . . . . . . . . . . . . . . . Hacks Repelled . | . . . . . . . . . . . . . . . . . . . . . . . . Allies | -11 -10 -10 -9 -9 -9 -8 -8 -8 -7 -6 -6 -6 -6 -5 -5 -5 -5 -5 -4 -4 -4 -4 -3 -------- Run | Scr Mat Min Mat Min Exi Min Mat Sto Fac Fac Low Low Dat Pro Fac Upp Upp Zhi Pro Fac Arm Lab Res Total Allies 7 | . . 3 . 1 . . . . . 1 1 . . . 1 . . . . . . . . Largest Group 3 | . . 3 3 1 1 . . . . 1 1 . . . 1 . . . . . . . . Highest-Rated Group 40 | . . 40 40 31 31 . . . . 10 20 . . . 26 . . . . . . . . Highest-Rated Ally 31 | . . 16 16 31 31 . . . . 10 20 . . . 26 . . . . . . . . Total Orders . | . . . . . . . . . . . . . . . . . . . . . . . . Ally Attacks 41 | . . . 41 . . . . . . . . . . . . . . . . . . . . Total Damage 519 | . . . 519 . . . . . . . . . . . . . . . . . . . . Kills 10 | . . . 10 . . . . . . . . . . . . . . . . . . . . Allies Corrupted . | . . . . . . . . . . . . . . . . . . . . . . . . Allies Melted . | . . . . . . . . . . . . . . . . . . . . . . . . Intel | -11 -10 -10 -9 -9 -9 -8 -8 -8 -7 -6 -6 -6 -6 -5 -5 -5 -5 -5 -4 -4 -4 -4 -3 ------- Run | Scr Mat Min Mat Min Exi Min Mat Sto Fac Fac Low Low Dat Pro Fac Upp Upp Zhi Pro Fac Arm Lab Res Robot Analysis Total 5 | . . . . . . . . . . 1 . . . . . . . 4 . . . . . Derelict Logs Recovered 11 | . . 3 . 1 . . . . . . 2 . . 2 . 1 1 . 1 . . . . Drone Launches . | . . . . . . . . . . . . . . . . . . . . . . . . Drone Recoveries . | . . . . . . . . . . . . . . . . . . . . . . . . Exploration | -11 -10 -10 -9 -9 -9 -8 -8 -8 -7 -6 -6 -6 -6 -5 -5 -5 -5 -5 -4 -4 -4 -4 -3 ------------- Run | Scr Mat Min Mat Min Exi Min Mat Sto Fac Fac Low Low Dat Pro Fac Upp Upp Zhi Pro Fac Arm Lab Res Turns Passed 22252 | 78 851 882 1795 599 563 522 1243 1337 1909 1137 1140 791 371 732 2493 274 1211 320 1019 1164 853 386 582 Spaces Moved 10982 | 46 381 448 776 301 282 262 566 551 927 571 549 434 131 309 1473 164 662 181 557 569 349 192 301 Core 6 | 6 . . . . . . . . . . . . . . . . . . . . . . . Treads 9003 | 40 381 448 776 301 282 262 458 81 927 571 549 434 88 . 430 164 662 181 557 569 349 192 301 Legs 1786 | . . . . . . . 108 470 . . . . 43 309 856 . . . . . . . . Wheels 187 | . . . . . . . . . . . . . . . 187 . . . . . . . . Hover . | . . . . . . . . . . . . . . . . . . . . . . . . Flight . | . . . . . . . . . . . . . . . . . . . . . . . . Fastest Speed 50 | 50 160 180 165 192 200 200 160 160 160 180 180 180 122 150 130 160 160 160 160 160 155 145 150 Average Speed 169 | 145 161 180 177 193 200 200 176 166 178 180 180 180 175 182 151 160 160 160 160 163 161 150 150 Slowest Speed 280 | 160 180 220 225 200 200 200 280 280 180 180 240 180 280 210 210 160 160 160 160 180 180 165 152 Overloaded Moves . | . . . . . . . . . . . . . . . . . . . . . . . . Propulsion Burnouts . | . . . . . . . . . . . . . . . . . . . . . . . . Robots Hopped . | . . . . . . . . . . . . . . . . . . . . . . . . Cave-ins Triggered . | . . . . . . . . . . . . . . . . . . . . . . . . Teleports 1 | . . . . . . . . . . . . . . . . . . . . . 1 . . Exploration Rate (%) 54 | 3 80 91 70 50 69 59 46 77 36 16 68 61 80 51 39 39 83 62 77 15 31 98 9 Regions Visited 23 Branch Regions 15 Pre-discovered Areas 11 | . 1 1 2 1 1 . . . . . 1 . 1 . . . . 3 . . . . . Known Exits Taken 11 | . . . 1 . 1 . . . . 1 . . . 1 1 1 1 1 1 1 . 1 . Unknown Exits Taken 12 | 1 1 1 . 1 . 1 1 1 1 . 1 1 1 . . . . . . . 1 . . Scrap Searched 15 | . . 2 . 2 . . . . . . 2 3 . . . 1 2 . 3 . . . . Spaces Dug 37 | . . . . . . . . 4 2 . . . . . 17 . . . . 6 3 . 5 Terrain Destroyed 402 | . . . . . . . 110 14 7 26 12 9 10 . 21 . 5 . 6 44 33 2 103 Melee 30 | . . . . . . . . . . . . . . . 17 . . . . 5 3 . 5 Projectile 41 | . . . . . . . . 1 2 . . . 2 . 4 . 5 . 6 13 6 2 . AOE 331 | . . . . . . . 110 13 5 26 12 9 8 . . . . . . 26 24 . 98 Terrain Rammed . | . . . . . . . . . . . . . . . . . . . . . . . . Walls Destroyed . | . . . . . . . . . . . . . . . . . . . . . . . . Machines Disabled . | . . . . . . . . . . . . . . . . . . . . . . . . Actions | -11 -10 -10 -9 -9 -9 -8 -8 -8 -7 -6 -6 -6 -6 -5 -5 -5 -5 -5 -4 -4 -4 -4 -3 --------- Run | Scr Mat Min Mat Min Exi Min Mat Sto Fac Fac Low Low Dat Pro Fac Upp Upp Zhi Pro Fac Arm Lab Res Total 13091 | 54 528 484 994 308 282 261 751 782 1078 654 634 442 236 388 1645 172 748 216 616 690 503 251 374 Wait 623 | . 88 6 50 . . . 103 46 57 62 14 . 39 8 35 . 42 . . 29 30 9 5 Move 10959 | 45 380 447 775 300 281 261 565 550 926 570 548 433 130 308 1472 163 661 180 556 568 348 191 301 Hop . | . . . . . . . . . . . . . . . . . . . . . . . . Pick Up 123 | 2 1 1 11 2 1 . 9 19 7 2 4 2 6 3 22 2 1 5 3 6 3 6 5 Fast Attach 84 | 6 1 2 6 . . . 5 10 2 . 1 1 7 2 15 . . 13 2 3 3 4 1 Attach 91 | . 2 1 8 1 . . 6 7 2 2 4 . 17 2 7 . 1 1 2 2 13 7 6 Detach 43 | . . 1 7 . . . 3 7 . . . . 2 . 9 . . . 1 1 4 7 1 Swap 111 | 1 6 . 9 . . . 7 9 15 2 9 1 3 3 6 3 5 . 6 12 8 2 4 Drop 106 | . 1 1 4 . . . 5 21 14 . 2 2 6 . 17 2 1 17 4 7 1 . 1 Fire 833 | . 48 25 122 5 . . 48 105 53 14 48 3 23 60 19 2 37 . 20 56 75 25 45 Melee 107 | . . . . . . . . 8 . . . . 3 2 43 . . . 22 6 18 . 5 Ram . | . . . . . . . . . . . . . . . . . . . . . . . . Kick . | . . . . . . . . . . . . . . . . . . . . . . . . Crush 5 | . 1 . 2 . . . . . . 2 . . . . . . . . . . . . . Escape Stasis 2 | . . . . . . . . . 2 . . . . . . . . . . . . . . Rewire 4 | . . . . . . . . . . . 4 . . . . . . . . . . . . Trap . | . . . . . . . . . . . . . . . . . . . . . . . . Miscellaneous . | . . . . . . . . . . . . . . . . . . . . . . . . Route ------- -11/Scrapyard -10/Materials (discovered 5 exits: *Mat x3 / [*Min x2]) -10/Mines (discovered 2 exits: *Mat x2) -9/Materials (discovered 4 exits: *Mat x3 / *Min) -9/Mines (discovered 3 exits: *Mat x2 / *Exi) -9/Exiles -8/Mines -8/Materials (discovered 2 exits: *Fac / *Sto) -8/Storage -7/Factory -6/Factory (discovered 2 exits: *Low x2) -6/Lower Caves -6/Lower Caves -6/Data Miner -5/Proximity Caves -5/Factory (discovered 3 exits: *Fac x2 / *Upp) -5/Upper Caves -5/Upper Caves -5/Zhirov -4/Proximity Caves -4/Factory (discovered 2 exits: Res / *Arm) -4/Armory -4/Lab -3/Research History --------- Turn | Location | Event 6 | -11/Scrapyard | Discovered new exit (range 16) 79 | -11/Scrapyard | Entered Materials 308 | -10/Materials | Build established: Mutant 431 | -10/Materials | Discovered new exit (range 9) 495 | -10/Materials | Discovered new exit (range 15) 495 | -10/Materials | Discovered new exit (range 16) 670 | -10/Materials | Discovered new exit (range 6) 830 | -10/Materials | Discovered new exit (range 16) 930 | -10/Materials | Entered Mines 968 | -10/Mines | Core integrity fell below 50% 993 | -10/Mines | Met a Derelict bent on vengeance 1019 | -10/Mines | Learned Materials machine intel 1159 | -10/Mines | Build established: Hauler-Mutant 1246 | -10/Mines | Learned location of Storage (-8) 1329 | -10/Mines | Assisted by bots powering up and referring to "LRC-V3" 1369 | -10/Mines | Discovered new exit (range 7) 1487 | -10/Mines | Discovered new exit (range 15) 1812 | -10/Mines | Entered Materials 1812 | -9/Materials | Accompanied by 3 allies 1812 | -9/Materials | Evolved 2 slots: Utility x2 1813 | -9/Materials | Identified exit to Mines 1814 | -9/Materials | Loaded intel: 56 machine locations 2142 | -9/Materials | Discovered new exit (range 12) 2649 | -9/Materials | Discovered new exit (range 16) 3024 | -9/Materials | Discovered new exit (range 11) 3607 | -9/Materials | Entered Mines 3636 | -9/Mines | Discovered new exit (range 10) 3856 | -9/Mines | Learned location of Zion (-7) 4099 | -9/Mines | Discovered new exit (range 5) 4114 | -9/Mines | Escorted by a lone wolf Derelict 4198 | -9/Mines | Deemed a non-threat by the Exiles lab entrance 4198 | -9/Mines | Discovered new exit (range 5) 4206 | -9/Mines | Entered Exiles 4206 | -9/Exiles | Accompanied by 1 ally 4207 | -9/Exiles | Identified exit to Mines 4256 | -9/Exiles | Met 8R-AWN 4288 | -9/Exiles | Met EX-HEX 4376 | -9/Exiles | Met EX-DEC 4460 | -9/Exiles | Met EX-BIN 4484 | -9/Exiles | Aligned with FarCom system 4486 | -9/Exiles | Given EX-Vault access code 4538 | -9/Exiles | Opened EX-Vault 4552 | -9/Exiles | Found Chronowheel 4595 | -9/Exiles | Warned to stay clear of 0b10 Research branches 4769 | -9/Exiles | Left Exiles lab with Chronowheel 4769 | -9/Exiles | Entered Mines 5279 | -8/Mines | Discovered new exit (range 7) 5291 | -8/Mines | Entered Materials 5291 | -8/Materials | Evolved 2 slots: Propulsion x1, Utility x1 5916 | -8/Materials | Lost 3 parts (1p2w) 6057 | -8/Materials | Discovered new exit (range 15) 6137 | -8/Materials | Lost 3 parts (1p1u1w) 6154 | -8/Materials | Discovered new exit (range 9) 6156 | -8/Materials | Destroyed 7 combat bots 6534 | -8/Materials | Entered Storage 7164 | -8/Storage | Garrison activated, responded to threat 7360 | -8/Storage | Core integrity fell below 50% 7419 | -8/Storage | Lost 4 parts (2n1u1w) 7828 | -8/Storage | Discovered new exit (range 16) 7871 | -8/Storage | Entered Factory 7871 | -7/Factory | Evolved 2 slots: Propulsion x1, Weapon x1 8162 | -7/Factory | Build established: Hauler-Tank 8522 | -7/Factory | Fabricated Gauss Rifle? 9749 | -7/Factory | Discovered new exit (range 12) 9780 | -7/Factory | Entered another Factory area 9780 | -6/Factory | Evolved 2 slots: Power x1, Utility x1 10266 | -6/Factory | Discovered new exit (range 12) 10526 | -6/Factory | Identified exit to Lower Caves 10917 | -6/Factory | Entered Lower Caves 10917 | -6/Lower Caves | Accompanied by 1 ally 10976 | -6/Lower Caves | Attracted the attention of an 0b10 checkpoint 11330 | -6/Lower Caves | Attracted the attention of an 0b10 outpost 11360 | -6/Lower Caves | Destroyed 8 combat bots 11769 | -6/Lower Caves | Discovered new exit (range 16) 11807 | -6/Lower Caves | Learned location of 1 exit from Proximity Caves 11869 | -6/Lower Caves | Med. Treads stolen by Master Thief 11869 | -6/Lower Caves | Med. Treads stolen by Master Thief 11892 | -6/Lower Caves | Med. Treads stolen by Master Thief 12057 | -6/Lower Caves | Entered another Lower Caves area 12560 | -6/Lower Caves | Build established: Hauler-Mutant 12594 | -6/Lower Caves | Discovered new exit (range 15) 12848 | -6/Lower Caves | Entered Data Miner 12848 | -6/Data Miner | Discovered new exit (range 6) 12895 | -6/Data Miner | Met Data Miner 12940 | -6/Data Miner | Learned location of Section 7 (-2) 12940 | -6/Data Miner | Acquired the access code to Warlord's prototype stash 12955 | -6/Data Miner | Received God Mode back door access code from Data Miner 12992 | -6/Data Miner | Activated Chronowheel 12997 | -6/Data Miner | Destroyed Data Miner 13002 | -6/Data Miner | Found Prototype Hackware 13002 | -6/Data Miner | Identified Ghost Barrier 13006 | -6/Data Miner | Found Prototype Hackware 13011 | -6/Data Miner | Data Conduit disabled 13067 | -6/Data Miner | Core integrity fell below 50% 13094 | -6/Data Miner | Core integrity fell below 20% 13128 | -6/Data Miner | Lost 20 parts (3p6n5u6w) 13149 | -6/Data Miner | Identified Quantum Router 13219 | -6/Data Miner | Entered Proximity Caves 13220 | -5/Proximity Caves | Identified exit to Factory 13410 | -5/Proximity Caves | Build established: Scavenger-Mutant 13439 | -5/Proximity Caves | Learned Factory non-interactive machine intel 13512 | -5/Proximity Caves | Learned Factory emergency access door positions 13770 | -5/Proximity Caves | Lost 3 parts (1u2w) 13868 | -5/Proximity Caves | Attracted the attention of an 0b10 checkpoint 13951 | -5/Proximity Caves | Entered Factory 13951 | -5/Factory | Evolved 2 slots: Propulsion x1, Utility x1 13953 | -5/Factory | Loaded intel: 267 non-interactive machine locations 14888 | -5/Factory | Central database locked down 15065 | -5/Factory | Discovered new exit (range 4) 15671 | -5/Factory | Discovered new exit (range 4) 16003 | -5/Factory | Build established: Hacker-Mutant 16098 | -5/Factory | Fabricated Adv. Core Analyzer (x1) 16270 | -5/Factory | Discovered new exit (range 5) 16282 | -5/Factory | Identified exit to Factory 16442 | -5/Factory | Identified exit to Upper Caves 16444 | -5/Factory | Entered Upper Caves 16446 | -5/Upper Caves | Attracted the attention of an 0b10 checkpoint 16581 | -5/Upper Caves | Learned Factory security intel 16705 | -5/Upper Caves | Discovered new exit (range 8) 16717 | -5/Upper Caves | Identified exit to Upper Caves 16718 | -5/Upper Caves | Entered another Upper Caves area 16933 | -5/Upper Caves | Attracted the attention of an 0b10 checkpoint 16946 | -5/Upper Caves | Destroyed 7 combat bots 17056 | -5/Upper Caves | Build established: Hacker-Tank 17155 | -5/Upper Caves | Learned location of 1 exit from Factory 17761 | -5/Upper Caves | Discovered new exit (range 12) 17927 | -5/Upper Caves | Identified exit to Zhirov 17929 | -5/Upper Caves | Entered Zhirov 17931 | -5/Zhirov | Discovered new exit (range 3) 17960 | -5/Zhirov | Met Zhirov 17989 | -5/Zhirov | Learned location of Quarantine (-3) 17989 | -5/Zhirov | Learned location of Testing (-2) 17989 | -5/Zhirov | Learned location of Command (-1) 18027 | -5/Zhirov | Zhirov requested help retrieving the SGEMP Prototype 18055 | -5/Zhirov | Found Alien Artifact 18080 | -5/Zhirov | Found Alien Artifact 18080 | -5/Zhirov | Identified Integrated Reactor 18080 | -5/Zhirov | Installed Integrated Reactor, increased core energy generation (+10) 18248 | -5/Zhirov | Identified exit to Proximity Caves 18249 | -5/Zhirov | Entered Proximity Caves 18653 | -4/Proximity Caves | Build established: Hacker-Mutant 18867 | -4/Proximity Caves | System corruption reached 10% 19125 | -4/Proximity Caves | Learned Research terminal intel 19162 | -4/Proximity Caves | Discovered exit to Factory (range 8) 19268 | -4/Proximity Caves | Entered Factory 19268 | -4/Factory | Evolved 2 slots: Utility x2 19269 | -4/Factory | Identified exit to Research 20068 | -4/Factory | Build established: Scavenger-Tank 20388 | -4/Factory | Discovered new exit (range 11) 20430 | -4/Factory | Identified exit to Armory 20432 | -4/Factory | Entered Armory 20529 | -4/Armory | Found Prototype Launcher 20529 | -4/Armory | Identified Mni. Smartbomb Launcher 20760 | -4/Armory | Lost 3 parts (1n1u1w) 20888 | -4/Armory | Lost 4 parts (1p2n1w) 20907 | -4/Armory | Destroyed 8 combat bots 20920 | -4/Armory | Build established: Hauler-Mutant 20932 | -4/Armory | Spotted B-86 Titan 20955 | -4/Armory | Destroyed B-86 Titan 20988 | -4/Armory | System corruption reached 10% 21105 | -4/Armory | Energy Cycler disabled 21173 | -4/Armory | Lost 4 parts (1p2n1u) 21228 | -4/Armory | First assault squad dispatched 21250 | -4/Armory | Identified Transdimensional Reconstructor 21250 | -4/Armory | Warped through subspace to slip node 21250 | -4/Armory | Discovered new exit (range 1) 21285 | -4/Armory | Entered Lab 21289 | -4/Lab | Discovered exit to Research (range 9) 21309 | -4/Lab | Unable to decrypt terminal 21309 | -4/Lab | Opened the door to a hidden lab 21310 | -4/Lab | Gained access to the hidden lab's interior 21314 | -4/Lab | Detected by scanners 21317 | -4/Lab | Unable to decrypt terminal 21320 | -4/Lab | Confronted by A5 21379 | -4/Lab | Lost 5 parts (1n3u1w) 21382 | -4/Lab | Destroyed A5 21461 | -4/Lab | Found Prototype Protection 21461 | -4/Lab | Identified Hvy. Regenerative Plating 21468 | -4/Lab | Found Prototype Energy Gun 21468 | -4/Lab | Identified Tachyon Dispersion Ray 21475 | -4/Lab | Found Prototype Energy Gun 21475 | -4/Lab | Identified Hyp. EM Gauss Rifle 21518 | -4/Lab | Found Prototype Special Weapon 21538 | -4/Lab | Unable to decrypt terminal 21566 | -4/Lab | Found Quantum Router 21605 | -4/Lab | Found Alien Artifact 21617 | -4/Lab | Found Transdimensional Reconstructor 21629 | -4/Lab | Found Alien Artifact 21641 | -4/Lab | Found Alien Artifact 21671 | -4/Lab | Entered Research 21671 | -3/Research | Evolved 2 slots: Propulsion x1, Utility x1 21672 | -3/Research | Loaded intel: 17 terminal locations 21823 | -3/Research | Found Prototype Processor 21823 | -3/Research | Identified Spectral Analyzer 22192 | -3/Research | Intercept squad dispatched 22206 | -3/Research | Spotted Tracker 22212 | -3/Research | Garrison activated, responded to threat 22214 | -3/Research | Destroyed Tracker 22230 | -3/Research | Identified Gui. Remote Datajack 22235 | -3/Research | Destroyed 7 combat bots 22253 | -3/Research | Self-destructed Last Messages --------------- 22241_ HV-EM Slug penetrates Catalytron. 22242_ K-01 Serf collects debris. 22243_ HV-EM Slug penetrates G-67 Veteran. 22245_ HV-EM Slug penetrates Wall. 22246_ The unstable cave ceiling collapses. 22246_ K-01 Serf collects debris. 22247_ Tachyon Dispersion Ray destroyed. 22247_ HV-EM Slug penetrates G-67 Veteran. 22247_ HV-EM Slug penetrates Catalytron. 22249_ HV-EM Slug penetrates G-67 Veteran. 22249_ HV-EM Slug penetrates Wall. 22250_ Biometal Heavy Treads destroyed. 22250_ K-01 Serf collects debris. 22251_ HV-EM Slug penetrates Wall. 22251_ HV-EM Slug penetrates Door. 22251_ Door malfunctions. 22251_ HV-EM Slug penetrates Wall. 22253_ The unstable cave ceiling collapses. 22253_ Hvy. Treads destroyed. 22253_ K-01 Serf collects debris. Map ----- +----------------------------------------------------+ | ???????????????? +??????????????????????????? | | ?????????????????# #??????????????????????????? | | ????????#######??# #??????????????????????????? | | ????????# ?# #################+######???? | | ????????# ?# ??? | | ????????# # ??? | | ????????# # ?? | | ????????#* """ + ?? | | ????????# """ ###+## ###????????????? | | ????????# """ ???????????????? | | ????????# %= ???????????????? | | ????????# "" * ????????????????? | | ????????####### "" ????????????????? | | ??????????????? # #????????????????? | | ????????######## # #????????????????? | | ????????# ! # #????????????????? | | ????????# #????????????????? | | ????????# !% #### # #"#????????????????? | | ????????# # ?##????????????????? | | ????????# A #???????????????????? | | ????????# # [ k ##??????????????????? | | ????????# """ + #??????????????????? | | ????????# """ # % #???????????????????? | | ????????# """ # # #???????????????????? | | ##################= ## ! #???????????????????? | | ! !%==!% ###@ #?#########?????????? | | =^^ ! = %= ### #?#"""G"""#?????????? | | %=%! ## g ###"""!"""####??????? | | ![ ### g ; ###????? | | ##########/####?# ; ""#????? | | !#???????? ???# ; """ """ ""#????? | | #??????? ?# gg; """ """ ""#????? | | #?????? ## ; """ """ T#????? | | #?????# """ ## gg # ""#????? | | #?????# """ ## / ""#????? | | #?????# """ !## # """ ""#????? | | """"" #?????# ####### """ !// ###????? | | """"" #?????# #?????# """ !// #??????? | | """"" #?????# #?????# //! #??????? | | #?????##########?????# #??????? | | #????????????????????##############??????? | | #????????????????????????????????????????? | | #????????????????????????????????????????? | | ########????????????????????????????????????????? | | #???????????????????????????????????????????????? | | #???????????????????????????????????????????????? | | #???????????????????????????????????????????????? | | #???????????????????????????????????????????????? | | #???######??????????????????????????????????????? | | #??? |#??????????????????????????????????????? | +----------------------------------------------------+ Best States ------------- Heat Dissipation 70 Coolant Potential 65 Energy Generation 55 Energy Capacity 580 Matter Stores 300 Matter Capacity 300 Sight Range 24 Terrain Scan Density 10 Additional Mass Support 16 Armor Coverage 1200 Resistance: TH 10 Resistance: EM 15 Weapon Shielding 66 Weapon Cycling 15 Phase Shifting 10 Evasion (%) 50 Target Analysis 6 Core Analysis 10 Armor Integrity Analysis 66 Recoil Reduction 6 Offensive Hacking 14 Defensive Hacking 25 Item Schematics ----------------- Gauss Rifle | -8/Materials | Scanalyzed Imp. Phase Shifter | -6/Factory | Hacked Combat Drone Bay | -6/Data Miner | Free Lgt. Regenerative Plating | -6/Data Miner | Free Tactical Coordination Suite | -6/Data Miner | Free Exp. Transmission Jammer | -6/Data Miner | Free Plasma Sword | -6/Data Miner | Free Hyp. Coil Gun | -5/Factory | Hacked Imp. Target Analyzer | -5/Factory | Hacked Imp. Armor Integrity Analyzer | -5/Factory | Hacked Assault Drone Bay | -5/Zhirov | Free Exp. Heat Sink | -5/Zhirov | Free Exp. Optical Array | -5/Zhirov | Free Imp. Arc Thrower | -5/Zhirov | Free Robot Schematics ------------------ S-27 Virus | -6/Data Miner | Free G-50 Soldier | -6/Data Miner | Free G-67 Veteran | -6/Data Miner | Free L-41 Fighter | -6/Data Miner | Free X-72 Disruptor | -6/Data Miner | Free P-70 Sage | -6/Data Miner | Free I-36 Angel | -6/Data Miner | Free I-47 Archangel | -6/Data Miner | Free Fabricated ------------ Gauss Rifle | x2 | -7/Factory Adv. Core Analyzer | x1 | -5/Factory | Preloaded Alien Tech Used ----------------- Integrated Reactor Transdimensional Reconstructor Achievements -------------- None Challenges ------------ None Game ------ Seed AluminumFissionPod Manual? 0 Play Time 02:24:40 Cumulative 156.5 hours Start 2021.05.20 @ 12:55:20 End 2021.05.21 @ 12:32:06 Sessions 3 Manual Loads 0 Difficulty Rogue Special Mode None Game No. 194 Rogue 107 Adventurer 87 Explorer 0 Win Type - Total 4 Types 3/0/0/1/0/0/0/0/0 Lore% 61 Gallery% 71 Achievement% 58 Wizard Run 0 Options --------- ASCII 0 Keyboard 1 Movement Numpad Keybinds 0 Fullscreen 1 Font 18/Smallcaps Map View 76x50 Tactical HUD 1 Map Filters NONE Filters NONE Steam 1 RUN: cb9bae27-1fe5-4049-92f8-e0cebfd70f73